bitfinex/quotes_BTCUSD_20251113
["timestamp","ask_amount","ask_price","bid_price","bid_amount"]
[1763068463499,8.438e-05,98759.0,98755.0,0.02875]
[1763068463733,8.438e-05,98759.0,98755.0,0.02975]
[1763068465495,0.00036453,98756.0,98755.0,0.02975]
[1763068466282,0.00036453,98756.0,98755.0,0.02875]
[1763068466842,0.00036453,98756.0,98755.0,0.02975]
[1763068473546,0.00036453,98756.0,98755.0,0.002]
[1763068478291,0.20288387,98756.0,98755.0,0.002]
[1763068478492,0.221844,98756.0,98755.0,0.002]
[1763068479144,0.28454011,98756.0,98755.0,0.002]
[1763068479348,0.01932466,98756.0,98755.0,0.002]
[1763068479586,0.01932466,98756.0,98755.0,0.02972]
[1763068479791,0.01932466,98756.0,98755.0,0.002]
[1763068479930,0.221844,98756.0,98755.0,0.002]
[1763068480129,0.01932466,98756.0,98755.0,0.002]
[1763068480565,0.01932466,98756.0,98755.0,0.001]
[1763068480769,0.221844,98756.0,98755.0,0.002]
[1763068480973,0.01932466,98756.0,98755.0,0.002]
[1763068481331,0.01932466,98756.0,98755.0,0.001]
[1763068482138,0.0352166,98756.0,98752.0,0.0133]
[1763068482313,0.01896013,98755.0,98753.0,0.02772]
[1763068482515,0.01589194,98756.0,98755.0,0.001]
[1763068482717,8.438e-05,98759.0,98756.0,0.02772]
[1763068484911,8.438e-05,98759.0,98756.0,0.02872]
[1763068485112,8.438e-05,98759.0,98756.0,0.02972]
[1763068486285,0.01597498,98759.0,98756.0,0.02972]
[1763068487584,8.438e-05,98759.0,98756.0,0.02972]
[1763068488016,0.00039056,98757.0,98756.0,0.02972]
[1763068488491,0.00039056,98757.0,98756.0,0.02772]
[1763068488693,0.00039056,98757.0,98756.0,0.03172]
[1763068489119,0.00039056,98757.0,98756.0,0.02972]
[1763068489347,0.00039056,98757.0,98756.0,0.03172]
[1763068490210,0.00039056,98757.0,98756.0,0.02972]
[1763068490978,0.00039056,98757.0,98756.0,0.03172]
[1763068491506,0.00039056,98757.0,98756.0,0.08390973]
[1763068491706,0.00039056,98757.0,98756.0,0.06018973]
[1763068491907,0.00039056,98757.0,98756.0,0.05818973]
[1763068492333,0.00039056,98757.0,98756.0,0.007]
[1763068495131,0.00039056,98757.0,98756.0,0.004]
[1763068495457,0.00039056,98757.0,98756.0,0.007]
[1763068496094,0.00039056,98757.0,98756.0,0.003]
[1763068496456,0.00039056,98757.0,98756.0,0.006]
[1763068496881,0.00039056,98757.0,98756.0,0.04233096]
[1763068497105,0.00039056,98757.0,98756.0,0.006]
[1763068497318,0.00039056,98757.0,98756.0,0.04232776]
[1763068497866,0.00039056,98757.0,98756.0,0.006]
[1763068502343,0.00039056,98757.0,98756.0,0.0422967]
[1763068503556,0.00039056,98757.0,98756.0,0.006]
[1763068506456,0.00039056,98757.0,98756.0,0.0423441]
[1763068506861,0.00039056,98757.0,98756.0,0.006]
[1763068508712,0.00039056,98757.0,98752.0,0.0496441]
[1763068508935,8.438e-05,98759.0,98756.0,0.005]
[1763068509137,8.438e-05,98759.0,98757.0,0.02704]
[1763068509576,8.438e-05,98759.0,98758.0,0.02727043]
[1763068509794,8.438e-05,98759.0,98756.0,0.02704]
[1763068509991,8.438e-05,98759.0,98752.0,0.04057043]
[1763068509992,8.438e-05,98759.0,98752.0,0.0163]
[1763068510202,0.00039056,98757.0,98756.0,0.002]
[1763068511187,0.00039056,98757.0,98752.0,0.0133]
[1763068511524,0.00028643,98753.0,98752.0,0.0133]
[1763068512603,0.00028643,98753.0,98752.0,0.04234]
[1763068512809,0.00028643,98753.0,98752.0,0.04334]
[1763068513009,0.00028643,98753.0,98752.0,0.0143]
[1763068513234,0.00028643,98753.0,98752.0,0.0133]
[1763068513423,0.00028643,98753.0,98752.0,0.002]
[1763068514184,0.42313709,98770.0,98752.0,0.002]
[1763068514397,0.20251071,98761.0,98752.0,0.003]
[1763068514773,0.42313709,98762.0,98752.0,0.003]
[1763068514996,0.56894423,98753.0,98752.0,0.003]
[1763068515210,0.56894423,98753.0,98715.0,0.01259]
[1763068515211,0.2,98740.0,98725.0,0.02704]
[1763068515425,0.42313709,98750.0,98737.0,0.01259]
[1763068515597,0.36641874,98749.0,98739.0,0.01732]
[1763068515770,0.323,98749.0,98739.0,0.01732]
[1763068516757,0.04341874,98752.0,98739.0,0.04436]
[1763068517554,0.01589309,98759.0,98751.0,0.02991]
[1763068517756,0.01589309,98759.0,98752.0,0.02704]
[1763068518384,0.01589309,98759.0,98752.0,0.02604]
[1763068518782,0.01689309,98759.0,98752.0,0.02604]
[1763068519150,0.01789309,98759.0,98752.0,0.02604]
[1763068519352,0.01689309,98759.0,98752.0,0.02604]
[1763068520524,0.01589309,98759.0,98752.0,0.02604]
[1763068520686,0.01589309,98759.0,98752.0,0.02704]
[1763068521051,0.01589309,98759.0,98752.0,0.02804]
[1763068525218,0.0002343,98762.0,98761.0,0.01732]
[1763068525424,0.0002343,98762.0,98761.0,0.02991]
[1763068526055,0.0002343,98762.0,98761.0,0.05695]
[1763068526370,0.0002343,98762.0,98761.0,0.01259]
[1763068527207,0.0002343,98762.0,98761.0,0.01359]
[1763068527634,0.0002343,98762.0,98761.0,0.01259]
[1763068528040,0.0002343,98762.0,98761.0,0.01459]
[1763068528576,0.0002343,98762.0,98761.0,0.01259]
[1763068528778,0.0002343,98762.0,98761.0,0.01759]
[1763068530054,0.0002343,98762.0,98761.0,0.01659]
[1763068530257,0.0002343,98762.0,98761.0,0.01959]
[1763068541576,0.0002343,98762.0,98761.0,0.01659]
[1763068542008,0.0002343,98762.0,98761.0,0.01459]
[1763068542218,0.0002343,98762.0,98761.0,0.01759]
[1763068549063,0.0002343,98762.0,98761.0,0.01459]
[1763068549469,0.0002343,98762.0,98761.0,0.01659]
[1763068549851,0.0002343,98762.0,98761.0,0.03956]
[1763068550073,0.0002343,98762.0,98761.0,0.04156]
[1763068550274,0.0002343,98762.0,98761.0,0.01559]
[1763068550485,0.0002343,98762.0,98761.0,0.01459]
[1763068550887,0.0002343,98762.0,98761.0,0.01559]
[1763068551442,0.0002343,98762.0,98761.0,0.01359]
[1763068551857,0.0002343,98762.0,98761.0,0.01559]
[1763068563038,0.0002343,98762.0,98761.0,0.01459]
[1763068563559,0.0002343,98762.0,98761.0,0.01659]
[1763068563906,0.0002343,98762.0,98761.0,0.01459]
[1763068564335,0.0002343,98762.0,98761.0,0.01659]
[1763068564735,0.0002343,98762.0,98761.0,0.01459]
[1763068564935,0.0002343,98762.0,98761.0,0.01759]
[1763068565166,0.0002343,98762.0,98761.0,0.01559]
[1763068565365,0.0002343,98762.0,98761.0,0.01859]
[1763068565579,0.0002343,98762.0,98761.0,0.01259]
[1763068565788,0.0002343,98762.0,98761.0,0.01459]
[1763068566000,0.0002343,98762.0,98761.0,0.003]
[1763068566205,0.0002343,98762.0,98761.0,0.002]
[1763068566619,0.0002343,98762.0,98761.0,0.003]
[1763068566836,0.0002343,98762.0,98761.0,0.002]
[1763068567041,0.0002343,98762.0,98753.0,0.02566]
[1763068567289,0.0002343,98762.0,98761.0,0.002]
[1763068567794,0.0002343,98762.0,98753.0,0.02566]
[1763068568268,0.0002343,98762.0,98761.0,0.02986]
[1763068570220,0.0002343,98762.0,98761.0,0.0138]
[1763068570488,0.0002343,98762.0,98761.0,0.0148]
[1763068572457,0.20243377,98798.0,98761.0,0.0148]
[1763068572458,0.04341874,98799.0,98788.0,0.02886]
[1763068572667,0.20244233,98794.0,98788.0,0.0128]
[1763068572883,0.01898736,98793.0,98788.0,0.0128]
[1763068573119,0.00070267,98789.0,98788.0,0.0128]
[1763068573337,0.01969003,98789.0,98788.0,0.0128]
[1763068574597,0.01969099,98789.0,98788.0,0.0128]
[1763068575176,0.02069099,98789.0,98788.0,0.0128]
[1763068575390,0.02069099,98789.0,98780.0,0.0128]
[1763068575637,0.20246623,98782.0,98771.0,0.02566]
[1763068575845,0.20246431,98783.0,98774.0,0.0128]
[1763068576043,0.20246317,98784.0,98774.0,0.0128]
[1763068576261,0.22145534,98783.0,98774.0,0.0128]
[1763068576460,0.20246603,98782.0,98774.0,0.0128]
[1763068576668,0.20246886,98781.0,98774.0,0.0128]
[1763068576904,0.2189894,98780.0,98765.0,0.0128]
[1763068577113,0.20248067,98775.0,98765.0,0.0128]
[1763068577335,0.20248067,98775.0,98751.0,0.01259]
[1763068577336,0.20250406,98764.0,98751.0,0.01259]
[1763068577538,0.24589131,98779.0,98751.0,0.01259]
[1763068577749,0.2,98780.0,98751.0,0.01259]
[1763068577750,0.42331617,98770.0,98752.0,0.02566]
[1763068578810,0.04341874,98779.0,98753.0,0.02566]
[1763068579020,0.2,98780.0,98753.0,0.02566]
[1763068579021,0.20249416,98769.0,98753.0,0.02566]
[1763068579235,0.42331617,98770.0,98753.0,0.02566]
[1763068579452,0.82580684,98770.0,98751.0,0.01259]
[1763068579648,0.42331617,98770.0,98751.0,0.01259]
[1763068579852,0.42331617,98770.0,98752.0,0.02566]
[1763068580289,0.01898513,98769.0,98752.0,0.02566]
[1763068580649,0.52179953,98770.0,98752.0,0.02566]
[1763068581630,0.20250728,98762.0,98752.0,0.02566]
[1763068581848,0.58594778,98770.0,98752.0,0.02566]
[1763068582034,0.42331617,98762.0,98752.0,0.02566]
[1763068582706,0.42331617,98770.0,98761.0,0.02886]
[1763068583325,0.42331617,98770.0,98762.0,0.02566]
[1763068584223,0.42331617,98772.0,98762.0,0.02566]
[1763068584437,0.04341874,98779.0,98762.0,0.02566]
[1763068584657,0.42331617,98772.0,98751.0,0.01259]
[1763068584900,0.42331617,98770.0,98761.0,0.0128]
[1763068585548,0.42331617,98770.0,98751.0,0.03825]
[1763068585761,0.62311617,98770.0,98751.0,0.03825]
[1763068585934,0.20249506,98768.0,98751.0,0.03825]
[1763068586097,0.42331617,98761.0,98751.0,0.03825]
[1763068586302,0.20249673,98768.0,98751.0,0.03825]
[1763068586511,0.20250557,98763.0,98751.0,0.03825]
[1763068586885,0.62331617,98770.0,98751.0,0.03825]
[1763068587089,0.42331617,98761.0,98751.0,0.03825]
[1763068587712,0.20249637,98768.0,98751.0,0.01259]
[1763068587918,0.2,98770.0,98751.0,0.01259]
[1763068588127,0.42331617,98761.0,98751.0,0.01259]
[1763068588576,0.2,98760.0,98751.0,0.01259]
[1763068588805,0.20251855,98757.0,98751.0,0.01359]
[1763068589021,0.20251523,98758.0,98751.0,0.01359]
[1763068589205,0.40251318,98760.0,98751.0,0.01359]
[1763068589455,0.2,98760.0,98751.0,0.01359]
[1763068590331,0.2,98760.0,98751.0,0.001]
[1763068590743,0.84663234,98761.0,98751.0,0.001]
[1763068590991,0.20252754,98752.0,98751.0,0.001]
[1763068591440,0.20253741,98748.0,98730.0,0.0128]
[1763068591671,0.20253391,98749.0,98739.0,0.01288438]
[1763068591902,0.62331617,98750.0,98739.0,8.438e-05]
[1763068592129,0.20255117,98741.0,98739.0,8.438e-05]
[1763068592357,0.04341874,98740.0,98739.0,8.438e-05]
[1763068592581,0.04341874,98740.0,98739.0,0.00108438]
[1763068592803,0.0623893,98740.0,98739.0,0.00108438]
[1763068593018,0.0623893,98740.0,98739.0,8.438e-05]
[1763068594302,0.07455837,98740.0,98739.0,8.438e-05]
[1763068594738,0.07555837,98740.0,98739.0,8.438e-05]
[1763068594942,0.07655837,98740.0,98739.0,8.438e-05]
[1763068595372,0.08840837,98740.0,98739.0,8.438e-05]
[1763068595576,0.0762393,98740.0,98739.0,8.438e-05]
[1763068595820,0.07718541,98740.0,98739.0,8.438e-05]
[1763068598278,0.43386826,98740.0,98739.0,8.438e-05]
[1763068598465,0.4647777,98740.0,98739.0,8.438e-05]
[1763068598783,2.53235162,98740.0,98739.0,8.438e-05]
[1763068599224,2.56326106,98740.0,98739.0,8.438e-05]
[1763068599445,2.59061337,98740.0,98739.0,8.438e-05]
[1763068599650,2.55314351,98740.0,98739.0,8.438e-05]
[1763068600063,2.55214364,98740.0,98739.0,8.438e-05]
[1763068600277,2.55414364,98740.0,98739.0,8.438e-05]
[1763068600492,2.55214364,98740.0,98739.0,8.438e-05]
[1763068600956,2.55514364,98740.0,98739.0,8.438e-05]
[1763068601386,2.55714364,98740.0,98739.0,8.438e-05]
[1763068601818,2.55514364,98740.0,98739.0,8.438e-05]
[1763068602301,2.55814364,98740.0,98739.0,8.438e-05]
[1763068603187,2.58905308,98740.0,98739.0,8.438e-05]
[1763068603596,2.58899775,98740.0,98739.0,8.438e-05]
[1763068603837,2.55808831,98740.0,98739.0,8.438e-05]
[1763068604563,2.55508831,98740.0,98739.0,8.438e-05]
[1763068604730,2.55208831,98740.0,98739.0,8.438e-05]
[1763068604933,2.55508831,98740.0,98739.0,8.438e-05]
[1763068605142,2.55808831,98740.0,98739.0,8.438e-05]
[1763068605347,2.58899775,98740.0,98739.0,8.438e-05]
[1763068605547,2.58599775,98740.0,98739.0,8.438e-05]
[1763068605954,2.58599775,98740.0,98696.0,0.00214551]
[1763068605955,0.24605914,98697.0,98696.0,0.00214551]
[1763068606182,0.2650297,98697.0,98696.0,0.00260844]
[1763068606604,0.2778797,98697.0,98696.0,0.00260844]
[1763068607260,0.31156255,98697.0,98696.0,0.00260844]
[1763068607693,0.31156255,98697.0,98696.0,0.00360844]
[1763068607923,0.2778797,98697.0,98696.0,0.00260844]
[1763068608142,0.68945808,98697.0,98696.0,0.00260844]
[1763068608360,0.72314093,98697.0,98696.0,0.00260844]
[1763068608833,0.63456255,98697.0,98696.0,0.00260844]
[1763068609698,0.63456255,98697.0,98696.0,0.00360844]
[1763068610110,0.63456255,98697.0,98696.0,0.00260844]
[1763068611096,0.63556255,98697.0,98696.0,0.00260844]
[1763068613817,0.63544948,98697.0,98696.0,0.00260844]
[1763068614019,0.65479384,98697.0,98696.0,0.00260844]
[1763068614455,0.64283714,98697.0,98696.0,1e-08]
[1763068614713,0.64283714,98697.0,98670.0,0.0004]
[1763068614714,0.2026938,98671.0,98670.0,0.0004]
[1763068614929,0.6082862,98671.0,98670.0,0.0004]
[1763068615105,0.66376822,98671.0,98670.0,0.0004]
[1763068615248,0.67413453,98671.0,98670.0,0.0004]
[1763068615488,0.62417866,98671.0,98670.0,0.0004]
[1763068615686,0.60244678,98671.0,98670.0,0.0004]
[1763068616206,0.61835463,98671.0,98670.0,0.0024]
[1763068616411,2.61835463,98671.0,98670.0,0.0024]
[1763068616620,2.60244511,98671.0,98670.0,0.0044]
[1763068617430,2.60244511,98671.0,98670.0,0.0004]
[1763068617633,2.70872356,98671.0,98670.0,0.0014]
[1763068617873,2.70872356,98671.0,98670.0,0.0024]
[1763068618276,2.78337776,98671.0,98670.0,0.0014]
[1763068618702,2.8171279,98671.0,98670.0,0.0014]
[1763068618897,2.8171279,98671.0,98670.0,0.0004]
[1763068619297,2.8171279,98671.0,98670.0,0.0014]
[1763068619502,2.8171279,98671.0,98670.0,0.0004]
[1763068619737,2.8171279,98671.0,98640.0,0.0004]
[1763068619738,0.56915363,98651.0,98640.0,0.0004]
[1763068619938,2.56917418,98641.0,98640.0,0.0004]
[1763068620154,2.58803,98641.0,98640.0,0.0004]
[1763068620323,2.64351614,98641.0,98640.0,0.0004]
[1763068620532,2.64351614,98641.0,98620.0,0.0004]
[1763068620533,0.56919474,98631.0,98620.0,0.0004]
[1763068620733,2.5692153,98621.0,98620.0,0.0004]
[1763068620890,2.58807112,98621.0,98620.0,0.0004]
[1763068621085,2.64352423,98621.0,98620.0,0.00252091]
[1763068621721,2.60977409,98621.0,98620.0,0.00252091]
[1763068622339,2.74200759,98621.0,98620.0,0.00252091]
[1763068622739,2.74200759,98621.0,98600.0,0.0004]
[1763068622740,2.56923586,98611.0,98600.0,0.0004]
[1763068622942,2.58809168,98611.0,98610.0,0.00086328]
[1763068623831,2.58909168,98611.0,98610.0,0.00086328]
[1763068624648,2.62690818,98611.0,98610.0,0.00086328]
[1763068624939,2.59315804,98611.0,98610.0,0.00086328]
[1763068625140,2.39034092,98611.0,98610.0,0.00086328]
[1763068625366,2.59315804,98611.0,98610.0,0.00086328]
[1763068625904,2.66754832,98611.0,98610.0,0.00086328]
[1763068626133,2.59215804,98611.0,98610.0,0.00086328]
[1763068626537,2.59215804,98611.0,98610.0,0.00286328]
[1763068626751,2.62590818,98611.0,98610.0,0.00286328]
[1763068626950,2.87040818,98611.0,98610.0,0.00286328]
[1763068627108,2.62590818,98611.0,98610.0,0.00286328]
[1763068627312,2.72439154,98611.0,98610.0,0.00286328]
[1763068627531,2.72439154,98611.0,98610.0,0.00186328]
[1763068627729,2.62590818,98611.0,98610.0,0.00186328]
[1763068627934,2.59315804,98611.0,98610.0,0.00186328]
[1763068628134,2.59315804,98611.0,98610.0,0.00086328]
[1763068628336,2.59415804,98611.0,98610.0,0.00086328]
[1763068628994,2.59315804,98611.0,98610.0,0.00086328]
[1763068629200,2.6906414,98611.0,98610.0,0.00086328]
[1763068629520,2.70755965,98611.0,98610.0,0.00086328]
[1763068629834,2.60907629,98611.0,98610.0,0.00086328]
[1763068630049,2.59315804,98611.0,98610.0,0.00086328]
[1763068630258,2.2267393,98611.0,98610.0,0.00086328]
[1763068630429,2.5497393,98611.0,98610.0,0.00086328]
[1763068631020,2.34692218,98611.0,98610.0,0.00086328]
[1763068631378,2.02392218,98611.0,98610.0,0.00086328]
[1763068631584,2.06734092,98611.0,98610.0,0.00086328]
[1763068631788,2.02392218,98611.0,98610.0,0.00086328]
[1763068631923,2.02292218,98611.0,98610.0,0.00086328]
[1763068632130,2.08225775,98611.0,98610.0,0.00086328]
[1763068632516,2.03983901,98611.0,98610.0,0.00186328]
[1763068632729,0.03983901,98611.0,98610.0,0.00186328]
[1763068632909,0.03883901,98611.0,98610.0,0.00186328]
[1763068633350,0.28507487,98611.0,98610.0,0.00186328]
[1763068633557,2.28507487,98611.0,98610.0,0.00186328]
[1763068635266,2.70655823,98611.0,98610.0,0.00186328]
[1763068635464,2.70655823,98611.0,98600.0,0.0004]
[1763068635465,2.56925643,98601.0,98600.0,0.0004]
[1763068635687,2.58857413,98601.0,98600.0,0.0004]
[1763068635910,2.62232427,98601.0,98600.0,0.0004]
[1763068636136,2.72080761,98601.0,98600.0,0.0004]
[1763068636355,2.72080761,98601.0,98600.0,1e-08]
[1763068636558,0.04341874,98593.0,98559.0,0.01219]
[1763068636763,2.56927701,98591.0,98559.0,0.01219]
[1763068636978,2.58813283,98591.0,98559.0,0.01219]
[1763068637432,2.72036633,98591.0,98553.0,0.01219]
[1763068637636,2.62188297,98591.0,98546.0,0.01219]
[1763068637852,2.62188297,98591.0,98551.0,0.01219]
[1763068638056,2.58813283,98591.0,98566.0,0.01219]
[1763068638266,2.26513283,98591.0,98551.0,0.01219]
[1763068638666,2.26713283,98591.0,98551.0,0.01219]
[1763068638821,2.26613283,98591.0,98551.0,0.01219]
[1763068639213,2.26513283,98591.0,98551.0,0.01219]
[1763068639614,2.29988297,98591.0,98551.0,0.01219]
[1763068640018,2.29888297,98591.0,98551.0,0.01219]
[1763068640235,2.62188297,98591.0,98551.0,0.01219]
[1763068640435,2.62188297,98591.0,98547.0,0.01219]
[1763068640800,2.62288297,98591.0,98547.0,0.01219]
[1763068641002,2.63507297,98591.0,98547.0,0.01219]
[1763068641229,2.73355633,98591.0,98547.0,0.01219]
[1763068641470,2.73455633,98591.0,98547.0,0.01219]
[1763068641688,0.2,98560.0,98547.0,0.01219]
[1763068641900,0.2,98560.0,98546.0,0.01219]
[1763068641901,0.20293163,98556.0,98546.0,0.01219]
[1763068642105,0.22178923,98555.0,98547.0,0.01219]
[1763068642311,0.22179182,98554.0,98547.0,0.01219]
[1763068642522,0.20294175,98551.0,98547.0,0.01219]
[1763068642734,0.20295061,98547.0,98539.0,0.01219]
[1763068642950,0.20295437,98545.0,98539.0,0.01232896]
[1763068643153,0.01885582,98544.0,98540.0,0.026]
[1763068643354,0.01885582,98543.0,98540.0,0.026]
[1763068643629,0.01885582,98542.0,98540.0,0.026]
[1763068643845,0.01885582,98541.0,98540.0,0.026]
[1763068644091,0.01888585,98549.0,98546.0,0.002]
[1763068644310,0.01890208,98548.0,98540.0,0.026]
[1763068644515,0.01890208,98547.0,98539.0,0.01232896]
[1763068644729,0.01890208,98546.0,98540.0,0.004]
[1763068644933,0.01890208,98545.0,98540.0,0.026]
[1763068645147,0.01890208,98544.0,98540.0,0.026]
[1763068645362,0.2,98550.0,98540.0,0.026]
[1763068645363,0.01890208,98543.0,98540.0,0.026]
[1763068645573,0.01890208,98542.0,98540.0,0.026]
[1763068645785,0.01890208,98541.0,98540.0,0.026]
[1763068646204,0.01890208,98549.0,98540.0,0.029]
[1763068646411,0.01890208,98548.0,98540.0,0.029]
[1763068646645,0.01890208,98547.0,98540.0,0.029]
[1763068646822,0.01890208,98546.0,98540.0,0.029]
[1763068647021,0.01592523,98555.0,98540.0,0.029]
[1763068647022,0.01890208,98545.0,98540.0,0.029]
[1763068647181,0.01890208,98544.0,98540.0,0.029]
[1763068647380,0.01592523,98555.0,98540.0,0.028]
[1763068647381,0.01890208,98543.0,98540.0,0.028]
[1763068647584,0.01890208,98542.0,98540.0,0.031]
[1763068647795,0.01890208,98541.0,98540.0,0.029]
[1763068647980,0.01890208,98554.0,98540.0,0.028]
[1763068648352,0.2,98550.0,98540.0,0.026]
[1763068648474,0.2,98550.0,98540.0,0.029]
[1763068648475,0.01890208,98549.0,98540.0,0.029]
[1763068648668,0.01890208,98548.0,98540.0,0.006]
[1763068648889,0.01890208,98547.0,98540.0,0.003]
[1763068649171,0.01890208,98546.0,98540.0,0.003]
[1763068649379,0.01890208,98545.0,98540.0,0.005]
[1763068649532,0.01890208,98544.0,98540.0,0.005]
[1763068649735,0.01890208,98543.0,98540.0,0.002]
[1763068649934,0.01890208,98542.0,98540.0,0.002]
[1763068650116,0.01890208,98541.0,98540.0,0.004]
[1763068650323,0.01890208,98541.0,98539.0,0.01232896]
[1763068650566,0.01890208,98540.0,98539.0,0.01232896]
[1763068650908,0.01890208,98540.0,98539.0,0.00013896]
[1763068651577,0.01890208,98540.0,98539.0,0.00313896]
[1763068652006,0.01890208,98540.0,98539.0,0.00013896]
[1763068652179,0.06232082,98540.0,98539.0,0.00013896]
[1763068652379,2.95244069,98540.0,98539.0,0.00313896]
[1763068652591,2.41907096,98540.0,98539.0,0.00313896]
[1763068652790,2.38532082,98540.0,98539.0,0.00313896]
[1763068653019,2.38532082,98540.0,98539.0,0.00613896]
[1763068653020,0.38532082,98540.0,98539.0,0.00613896]
[1763068653222,0.38532082,98540.0,98539.0,0.00313896]
[1763068653425,0.06232082,98540.0,98539.0,0.00013896]
[1763068653639,0.01890208,98540.0,98539.0,0.00113896]
[1763068653845,0.01890208,98540.0,98539.0,0.00013896]
[1763068654000,0.01890208,98540.0,98539.0,0.00113896]
[1763068654734,0.01890208,98540.0,98539.0,0.00213896]
[1763068656206,0.06232082,98540.0,98539.0,0.00213896]
[1763068656433,2.06232082,98540.0,98539.0,0.00213896]
[1763068657232,2.38532082,98540.0,98539.0,0.00113896]
[1763068657379,2.41907096,98540.0,98539.0,0.00113896]
[1763068657580,2.38532082,98540.0,98539.0,0.00113896]
[1763068657814,0.04341874,98529.0,98498.0,0.09816915]
[1763068658149,0.00862,98521.0,98498.0,0.09830806]
[1763068658354,0.01890208,98520.0,98499.0,0.01181]
[1763068658485,0.01890208,98519.0,98499.0,0.01181]
[1763068658838,0.00862,98521.0,98499.0,0.01181]
[1763068658839,0.01890208,98518.0,98499.0,0.01181]
[1763068659010,0.01890208,98517.0,98499.0,0.01181]
[1763068659216,0.01890208,98516.0,98499.0,0.01181]
[1763068659456,0.01890208,98515.0,98499.0,0.01181]
[1763068659661,0.01890208,98514.0,98499.0,0.01181]
[1763068659861,0.01890208,98513.0,98500.0,0.02489]
[1763068660077,0.01890208,98512.0,98500.0,0.02489]
[1763068660331,0.01890208,98511.0,98500.0,0.02489]
[1763068660532,0.01890208,98510.0,98500.0,0.02489]
[1763068660749,0.00862,98521.0,98510.0,0.01663]
[1763068660965,0.01894003,98520.0,98510.0,0.01663]
[1763068661194,0.01894003,98519.0,98511.0,0.0367]
[1763068661402,0.01278,98541.0,98514.0,0.01181]
[1763068661403,0.01894003,98518.0,98514.0,0.01181]
[1763068661625,0.01894003,98517.0,98514.0,0.01181]
[1763068661866,0.01894003,98516.0,98515.0,0.02489]
[1763068662078,0.01894003,98546.0,98515.0,0.02489]
[1763068662297,2.01894003,98545.0,98515.0,0.02489]
[1763068662520,0.01894003,98544.0,98515.0,0.02489]
[1763068662739,0.01895173,98543.0,98515.0,0.02489]
[1763068662959,0.01895173,98542.0,98515.0,0.02489]
[1763068663162,0.01895173,98541.0,98515.0,0.02489]
[1763068663374,0.01895173,98540.0,98515.0,0.02489]
[1763068663577,0.01895173,98539.0,98515.0,0.02489]
[1763068663797,0.01278,98548.0,98515.0,0.02489]
[1763068663798,0.01895173,98538.0,98515.0,0.02489]
[1763068663974,0.01895173,98537.0,98515.0,0.02589]
[1763068664251,0.01895173,98536.0,98515.0,0.02789]
[1763068664469,0.01895173,98535.0,98515.0,0.02789]
[1763068664689,0.01895173,98534.0,98515.0,0.02589]
[1763068664893,0.01895173,98533.0,98515.0,0.02789]
[1763068665135,0.01895173,98532.0,98515.0,0.02689]
[1763068665357,0.01895173,98531.0,98515.0,0.02789]
[1763068665581,0.01278,98548.0,98515.0,0.02689]
[1763068665582,0.01895173,98530.0,98515.0,0.02689]
[1763068665851,0.01895173,98529.0,98515.0,0.02689]
[1763068666076,0.01895173,98528.0,98527.0,0.09816915]
[1763068667173,0.01895173,98528.0,98515.0,0.002]
[1763068667383,0.01278,98545.0,98514.0,0.01181]
[1763068667384,0.01278,98545.0,98527.0,0.11479915]
[1763068667591,0.0190068,98544.0,98527.0,0.11479915]
[1763068667821,0.0190068,98543.0,98528.0,0.02489]
[1763068668039,0.0190068,98542.0,98528.0,0.02489]
[1763068668214,0.0190068,98541.0,98528.0,0.02489]
[1763068668458,0.0190068,98540.0,98529.0,0.01181]
[1763068668666,0.0190068,98539.0,98529.0,0.01181]
[1763068668882,0.42899766,98560.0,98530.0,0.02489]
[1763068668883,0.01900974,98538.0,98530.0,0.02489]
[1763068669108,0.01900974,98537.0,98530.0,0.02489]
[1763068669314,0.01900974,98536.0,98530.0,0.02489]
[1763068669559,0.01900974,98535.0,98530.0,0.02489]
[1763068669742,0.01900974,98534.0,98530.0,0.02489]
[1763068669954,0.01900974,98534.0,98529.0,0.01194891]
[1763068669955,0.83284482,98550.0,98529.0,0.00213891]
[1763068669956,0.01900974,98533.0,98529.0,0.00213891]
[1763068670135,0.01900974,98532.0,98530.0,0.002]
[1763068670339,0.01900974,98531.0,98530.0,0.002]
[1763068670712,0.01900974,98531.0,98529.0,0.00213891]
[1763068671073,0.01900974,98530.0,98529.0,0.00013891]
[1763068671979,0.01900974,98530.0,98529.0,0.00213891]
[1763068672407,0.01900974,98530.0,98529.0,0.00013891]
[1763068672621,0.03493717,98530.0,98529.0,0.00013891]
[1763068672808,0.03493717,98530.0,98529.0,0.00213891]
[1763068673006,0.03493717,98530.0,98529.0,0.00013891]
[1763068673228,0.03493717,98530.0,98529.0,0.02502891]
[1763068673598,0.03493717,98530.0,98529.0,0.00213891]
[1763068673988,0.03493717,98530.0,98529.0,0.00013891]
[1763068674195,0.01592743,98530.0,98529.0,0.00013891]
[1763068674395,0.03495295,98530.0,98529.0,0.00513891]
[1763068674601,0.03495295,98530.0,98529.0,0.00313891]
[1763068675032,0.03495295,98530.0,98529.0,0.00513891]
[1763068675234,0.01592743,98530.0,98529.0,0.00513891]
[1763068677884,0.01592743,98530.0,98529.0,0.00313891]
[1763068678315,0.01592743,98530.0,98529.0,0.00513891]
[1763068678493,0.03345743,98530.0,98529.0,0.00213891]
[1763068678921,0.23644129,98530.0,98529.0,0.00413891]
[1763068679077,0.03345743,98530.0,98529.0,0.00413891]
[1763068679283,0.01592743,98530.0,98529.0,0.00213891]
[1763068679650,0.01592743,98530.0,98529.0,0.00413891]
[1763068680030,0.03310743,98530.0,98529.0,0.00213891]
[1763068680240,0.03310743,98530.0,98529.0,0.00013891]
[1763068680241,0.23609129,98530.0,98529.0,0.00013891]
[1763068680442,0.03310743,98530.0,98529.0,0.00213891]
[1763068680807,0.03310743,98530.0,98529.0,0.00413891]
[1763068681011,0.01592743,98530.0,98529.0,0.00213891]
[1763068681422,0.01592743,98530.0,98529.0,0.00313891]
[1763068681630,0.01592743,98530.0,98529.0,0.00113891]
[1763068682097,0.01592743,98530.0,98529.0,0.00313891]
[1763068682560,0.03310743,98530.0,98529.0,0.00313891]
[1763068682824,0.03851,98539.0,98529.0,0.00113891]
[1763068683088,0.01903992,98538.0,98529.0,0.00113891]
[1763068683297,0.4,98550.0,98529.0,0.00113891]
[1763068683298,0.60711482,98550.0,98538.0,0.02817]
[1763068683433,0.01903782,98549.0,98539.0,0.01731]
[1763068683638,0.01903782,98548.0,98539.0,0.04115]
[1763068683839,0.00862,98559.0,98539.0,0.02384]
[1763068683840,0.323,98559.0,98539.0,0.02384]